fUSD/lending_fUSD_20241207
["ID","MTS","AMOUNT","RATE_DAILY","PERIOD"]
[344537433,1733537488711,-794.33,0.00012325,2]
[344537434,1733537488720,-500.0,0.00012325,2]
[344537435,1733537488729,-569.48,0.00012325,2]
[344537436,1733537488739,-500.0,0.00012325,2]
[344537437,1733537488749,-522.13416938,0.00012325,2]
[344537438,1733537488759,-500.0,0.00012325,2]
[344537439,1733537488769,-940.67,0.00012325,2]
[344537440,1733537488779,-584.26,0.00012325,2]
[344537441,1733537488861,-1198.88,0.00012325,2]
[344537442,1733537488871,-607.45,0.00012325,2]
[344537443,1733537488881,-500.0,0.00012325,2]
[344537444,1733537488890,-500.0,0.00012325,2]
[344537445,1733537488902,-500.0,0.00012325,2]
[344537446,1733537488911,-983.98,0.00012325,2]
[344537447,1733537488921,-500.0,0.00012325,2]
[344537448,1733537488930,-679.16,0.00012325,2]
[344537449,1733537488940,-1075.79,0.00012325,2]
[344537450,1733537488949,-500.0,0.00012325,2]
[344537451,1733537488959,-733.78,0.00012325,2]
[344537452,1733537488969,-592.95,0.00012325,2]
[344537453,1733537488979,-1043.19,0.00012325,2]
[344537454,1733537488989,-588.58,0.00012325,2]
[344537455,1733537488999,-581.87,0.00012325,2]
[344537456,1733537489010,-500.0,0.00012325,2]
[344537457,1733537489020,-835.12,0.00012325,2]
[344537458,1733537489030,-530.69,0.00012325,2]
[344537459,1733537489039,-544.29,0.00012325,2]
[344537460,1733537489049,-500.0,0.00012326,2]
[344537461,1733537489059,-500.0,0.00012326,2]
[344537462,1733537489068,-500.0,0.00012326,2]
[344537463,1733537489078,-500.0,0.00012326,2]
[344537464,1733537489087,-500.0,0.00012326,2]
[344537465,1733537489097,-500.0,0.00012326,2]
[344537466,1733537489106,-500.0,0.00012326,2]
[344537467,1733537489115,-500.0,0.00012326,2]
[344537468,1733537489125,-500.0,0.00012326,2]
[344537469,1733537489135,-500.0,0.00012326,2]
[344537470,1733537489147,-500.0,0.00012326,2]
[344537471,1733537489159,-500.0,0.00012326,2]
[344537472,1733537489168,-500.0,0.00012326,2]
[344537473,1733537489177,-500.0,0.00012326,2]
[344537474,1733537489187,-500.0,0.00012326,2]
[344537475,1733537489198,-1126.617,0.00012327,2]
[344537476,1733537489208,-1669.65,0.00012327,2]
[344537477,1733537489217,-506.068,0.00012327,2]
[344537478,1733537489226,-1252.0,0.00012327,2]
[344537479,1733537489236,-3761.0,0.00012327,2]
[344537480,1733537489247,-816.0,0.00012327,2]
[344537481,1733537489257,-973.0,0.00012327,2]
[344537482,1733537489267,-1468.653,0.00012327,2]
[344537483,1733537489277,-150.0,0.00012327,2]
[344537484,1733537489287,-502.12,0.00012329,2]
[344537485,1733537489297,-602.459984,0.00012329,2]
[344537486,1733537489307,-151.0,0.00012329,2]
[344537487,1733537489316,-602.459984,0.00012329,2]
[344537488,1733537489326,-1255.757019,0.00012329,2]
[344537489,1733537489336,-1255.757019,0.00012329,2]
[344537490,1733537489346,-156.004182,0.00012329,2]
[344537491,1733537489360,-156.004182,0.00012329,2]
[344537492,1733537489370,-2327.353226,0.00012329,2]
[344537493,1733537489380,-2327.353226,0.00012329,2]
[344537494,1733537489390,-10000.0,0.00012329,2]
[344537495,1733537489403,-10000.0,0.00012329,2]
[344537496,1733537489413,-10000.0,0.00012329,2]
[344537497,1733537489423,-662.042942,0.00012329,2]
[344537498,1733537489434,-10000.0,0.00012329,2]
[344537499,1733537489444,-662.042942,0.00012329,2]
[344537500,1733537489454,-10000.0,0.00012329,2]
[344537501,1733537489463,-10000.0,0.00012329,2]
[344537502,1733537489473,-7014.762614,0.00012329,2]
[344537503,1733537489482,-7014.762614,0.00012329,2]
[344537504,1733537489492,-151.0,0.00012329,2]
[344537505,1733537489501,-151.0,0.00012329,2]
[344537506,1733537489511,-151.0,0.00012329,2]
[344537507,1733537489521,-151.0,0.00012329,2]
[344537508,1733537489530,-2226.238167,0.00012329,2]
[344537509,1733537489540,-2190.571716,0.00012329,2]
[344537510,1733537489549,-151.0,0.00012329,2]
[344537511,1733537489559,-2190.571716,0.00012329,2]
[344537512,1733537489569,-151.0,0.00012329,2]
[344537513,1733537489579,-2226.238167,0.00012329,2]
[344537514,1733537489589,-151.0,0.00012329,2]
[344537515,1733537489599,-151.0,0.00012329,2]
[344537516,1733537489608,-151.0,0.00012329,2]
[344537517,1733537489617,-151.0,0.00012329,2]
[344537518,1733537489626,-151.0,0.00012329,2]
[344537519,1733537489637,-480.352485,0.00012329,2]
[344537520,1733537489649,-151.0,0.00012329,2]
[344537521,1733537489658,-480.352485,0.00012329,2]
[344537522,1733537489667,-151.0,0.00012329,2]
[344537523,1733537489677,-151.0,0.00012329,2]
[344537524,1733537489686,-151.0,0.00012329,2]
[344537525,1733537489697,-151.0,0.00012329,2]
[344537526,1733537489707,-151.0,0.00012329,2]
[344537527,1733537489717,-152.126331,0.00012329,2]
[344537528,1733537489726,-480.352485,0.00012329,2]
[344537529,1733537489735,-151.0,0.00012329,2]
[344537530,1733537489744,-480.352485,0.00012329,2]
[344537531,1733537489753,-151.0,0.00012329,2]
[344537532,1733537489763,-562.51,0.0001235,2]
[344537533,1733537489773,-214.52413707,0.00012461,2]
[344537534,1733537489783,-500.0,0.00012461,2]
[344537535,1733537489793,-1000.0,0.00012498,3]
[344537536,1733537489803,-1000.0,0.00012498,2]
[344537537,1733537489813,-700.702088,0.00012597,2]
[344537538,1733537489823,-700.702088,0.00012597,2]
[344537539,1733537489832,-3988.322435,0.00012597,2]
[344537540,1733537489843,-3988.322435,0.00012597,2]
[344537541,1733537489852,-418.554202,0.00012597,2]
[344537542,1733537489861,-418.554202,0.00012597,2]
[344537543,1733537489871,-1050.3,0.00012597,2]
[344537544,1733537489881,-500.0,0.00012597,2]
[344537545,1733537489890,-1597.53,0.00012597,2]
[344537546,1733537489903,-1400.57,0.00012597,2]
[344537547,1733537489912,-365.302161,0.00012597,2]
[344537548,1733537489922,-548.55,0.00012597,2]
[344537549,1733537489932,-1766.81,0.00012597,2]
[344537550,1733537489942,-6143.12,0.00012597,2]
[344537551,1733537489952,-1488.72,0.00012597,2]
[344537552,1733537489962,-832.22,0.00012597,2]
[344537553,1733537489972,-525.94,0.00012597,2]
[344537554,1733537489981,-881.78,0.00012597,2]
[344537555,1733537489991,-1317.97,0.00012597,2]
[344537556,1733537490001,-500.0,0.00012597,2]
[344537557,1733537490011,-1288.04,0.00012597,2]
[344537558,1733537490021,-500.0,0.00012597,2]
[344537559,1733537490030,-545.05,0.00012597,2]
[344537560,1733537490040,-1581.01,0.00012597,2]
[344537561,1733537490049,-1641.76,0.00012597,2]
[344537562,1733537490059,-721.09,0.00012597,2]
[344537563,1733537490069,-835.39,0.00012597,2]
[344537564,1733537490079,-2710.58,0.00012597,2]
[344537565,1733537490088,-500.0,0.00012597,2]
[344537566,1733537490099,-1386.68,0.00012597,2]
[344537567,1733537490108,-8757.87,0.00012597,2]
[344537568,1733537490118,-500.0,0.00012597,2]
[344537569,1733537490128,-3403.53,0.00012597,2]
[344537570,1733537490138,-2678.48,0.00012597,2]
[344537571,1733537490151,-254.643733,0.00012597,2]
[344537572,1733537490161,-151.0,0.00012597,2]
[344537573,1733537490170,-936.22,0.00012597,2]
[344537574,1733537490180,-151.0,0.00012597,2]
[344537575,1733537490191,-876.67,0.00012597,2]
[344537576,1733537490201,-500.0,0.00012597,2]
[344537577,1733537490211,-4610.02,0.00012597,2]
[344537578,1733537490221,-500.0,0.00012597,2]
[344537579,1733537490231,-1590.58,0.00012597,2]
[344537580,1733537490241,-571.55,0.00012597,2]
[344537581,1733537490251,-1388.66,0.00012597,2]
[344537582,1733537490261,-500.0,0.00012597,2]
[344537583,1733537490271,-811.95,0.00012597,2]
[344537584,1733537490280,-9896.25,0.00012597,2]
[344537585,1733537490290,-500.0,0.00012597,2]
[344537586,1733537490300,-1248.83,0.00012597,2]
[344537587,1733537490310,-500.0,0.00012597,2]
[344537588,1733537490320,-945.51,0.00012597,2]
[344537589,1733537490330,-8439.08,0.00012597,2]
[344537590,1733537490340,-500.0,0.00012597,2]
[344537591,1733537490350,-2764.02,0.00012597,2]
[344537592,1733537490364,-1408.69,0.00012597,2]
[344537593,1733537490374,-1121.13,0.00012597,2]
[344537594,1733537490383,-1072.4,0.00012597,2]
[344537595,1733537490396,-500.0,0.00012598,2]
[344537596,1733537490406,-1140.1,0.00012598,2]
[344537597,1733537490416,-1462.62,0.00012598,2]
[344537598,1733537490426,-2115.81,0.00012598,2]
[344537599,1733537490437,-1415.45,0.00012598,2]
[344537600,1733537490447,-500.0,0.00012598,2]
[344537601,1733537490457,-500.0,0.00012598,2]
[344537602,1733537490467,-500.0,0.00012598,2]
[344537603,1733537490477,-609.04,0.00012598,2]
[344537604,1733537490488,-819.45,0.00012598,2]
[344537605,1733537490498,-1046.78,0.00012598,2]
[344537606,1733537490508,-950.43,0.00012598,2]
[344537607,1733537490518,-500.0,0.00012598,2]
[344537608,1733537490529,-500.0,0.00012598,2]
[344537609,1733537490539,-804.93,0.00012598,2]
[344537610,1733537490549,-500.0,0.00012598,2]
[344537611,1733537490558,-351.25924704,0.00012598,2]
[344537612,1733537490568,-1117.46,0.00012598,2]
[344537613,1733537490577,-721.67,0.00012598,2]
[344537614,1733537490587,-563.82,0.00012598,2]
[344537615,1733537490597,-890.81,0.00012598,2]
[344537616,1733537490607,-500.0,0.00012598,2]
[344537617,1733537490616,-500.0,0.00012598,2]
[344537618,1733537490626,-500.0,0.00012598,2]
[344537619,1733537490636,-773.09,0.00012598,2]
[344537620,1733537490648,-611.78,0.00012598,2]
[344537621,1733537490658,-708.34,0.00012598,2]
[344537622,1733537490668,-1172.09,0.00012598,2]
[344537623,1733537490678,-1122.04,0.00012598,2]
[344537624,1733537490688,-536.64,0.00012598,2]
[344537625,1733537490698,-1195.36,0.00012598,2]
[344537626,1733537490709,-1204.41,0.00012598,2]
[344537627,1733537490720,-500.0,0.00012598,2]
[344537628,1733537490730,-1277.16,0.00012598,2]
[344537629,1733537490740,-723.36,0.00012598,2]
[344537630,1733537490750,-1141.67,0.00012598,2]
[344537631,1733537490760,-500.0,0.00012598,2]
[344537632,1733537490769,-151.0,0.00012598,2]
[344537633,1733537490779,-626.89,0.00012598,2]
[344537634,1733537490788,-2158.500949,0.00012598,2]
[344537635,1733537490799,-2158.500949,0.00012598,2]
[344537636,1733537490808,-561.29,0.00012598,2]
[344537637,1733537490819,-952.18,0.00012598,2]
[344537638,1733537490828,-940.5,0.00012598,2]
[344537639,1733537490838,-756.732091,0.00012598,2]
[344537640,1733537490847,-867.31,0.00012598,2]
[344537641,1733537490857,-756.732091,0.00012598,2]
[344537642,1733537490866,-841.91,0.00012598,2]
[344537643,1733537490876,-500.0,0.00012598,2]
[344537644,1733537490886,-263.572548,0.00012598,2]
[344537645,1733537490896,-500.0,0.00012598,2]
[344537646,1733537490907,-263.572548,0.00012598,2]
[344537647,1733537490916,-598.02,0.00012598,2]
[344537648,1733537490926,-500.0,0.00012598,2]
[344537649,1733537490935,-519.16,0.00012598,2]
[344537650,1733537490945,-1077.49,0.00012598,2]
[344537651,1733537490955,-500.0,0.00012598,2]
[344537652,1733537490965,-503.35,0.00012598,2]
[344537653,1733537490975,-500.0,0.00012598,2]
[344537654,1733537490985,-963.09,0.00012598,2]
[344537655,1733537490994,-753.094225,0.00012598,2]
[344537656,1733537491004,-1121.84,0.00012598,2]
[344537657,1733537491014,-753.094225,0.00012598,2]
[344537658,1733537491024,-625.34,0.00012598,2]
[344537659,1733537491034,-705.73,0.00012598,2]
[344537660,1733537491043,-500.0,0.00012598,2]
[344537661,1733537491053,-576.6,0.00012598,2]
[344537662,1733537491063,-419.30267696,0.00012598,2]
[344537663,1733537491073,-500.0,0.00012598,2]
[344537664,1733537491083,-151.0,0.00012598,2]
[344537665,1733537491093,-5766.642696,0.00012598,2]
[344537666,1733537491103,-500.0,0.00012598,2]
[344537667,1733537491113,-500.0,0.00012598,2]
[344537668,1733537491123,-500.0,0.00012598,2]
[344537669,1733537491132,-5766.642696,0.00012598,2]
[344537670,1733537491142,-515.19,0.00012598,2]
[344537671,1733537491160,-660.5,0.00012598,2]
[344537672,1733537491170,-505.65861041,0.00012598,2]
[344537673,1733537491180,-500.0,0.00012598,2]
[344537674,1733537491190,-192.648541,0.00012598,2]
[344537675,1733537491199,-151.0,0.00012598,2]
[344537676,1733537491210,-500.0,0.00012598,2]
[344537677,1733537491221,-892.96,0.00012598,2]
[344537678,1733537491231,-192.648541,0.00012598,2]
[344537679,1733537491241,-567.63,0.00012598,2]
[344537680,1733537491251,-1345.19,0.00012598,2]
[344537681,1733537491261,-151.0,0.00012598,2]
[344537682,1733537491271,-712.16,0.00012598,2]
[344537683,1733537491281,-500.0,0.00012598,2]
[344537684,1733537491291,-500.0,0.00012598,2]
[344537685,1733537491301,-870.39,0.00012598,2]
[344537686,1733537491310,-500.0,0.00012598,2]
[344537687,1733537491320,-820.34,0.00012598,2]
[344537688,1733537491330,-588.07,0.00012598,2]
[344537689,1733537491340,-458.9989649,0.00012598,2]
[344537690,1733537491350,-820.76,0.00012598,2]
[344537691,1733537491364,-854.13,0.00012598,2]
[344537692,1733537491374,-500.0,0.00012598,2]
[344537693,1733537491383,-550.88,0.00012598,2]
[344537694,1733537491394,-500.0,0.00012598,2]
[344537695,1733537491406,-1181.78,0.00012598,2]
[344537696,1733537491415,-778.07,0.00012598,2]
[344537697,1733537491425,-500.0,0.00012598,2]
[344537698,1733537491435,-582.48,0.00012598,2]
[344537699,1733537491444,-2295.52,0.00012598,2]
[344537700,1733537491455,-829.82,0.00012598,2]
[344537701,1733537491464,-794.15,0.00012598,2]
[344537702,1733537491474,-799.05,0.00012598,2]
[344537703,1733537491483,-500.0,0.00012598,2]
[344537704,1733537491493,-500.0,0.00012598,2]
[344537705,1733537491502,-724.21,0.00012598,2]
[344537706,1733537491512,-500.0,0.00012598,2]
[344537707,1733537491522,-664.86,0.00012598,2]
[344537708,1733537491531,-989.21,0.00012598,2]
[344537709,1733537491541,-849.12,0.00012598,2]
[344537710,1733537491550,-500.0,0.00012598,2]
[344537711,1733537491560,-500.0,0.00012598,2]
[344537712,1733537491570,-328.07456144,0.00012598,2]
[344537713,1733537491580,-509.57,0.00012598,2]
[344537714,1733537491590,-713.01,0.00012598,2]
[344537715,1733537491600,-679.55,0.00012598,2]
[344537716,1733537491610,-560.76,0.00012598,2]
[344537717,1733537491620,-1346.56,0.00012598,2]
[344537718,1733537491629,-989.19,0.00012598,2]
[344537719,1733537491639,-1211.19,0.00012598,2]
[344537720,1733537491651,-1833.64,0.00012598,2]
[344537721,1733537491661,-500.0,0.00012598,2]
[344537722,1733537491671,-500.0,0.00012598,2]
[344537723,1733537491682,-589.26,0.00012598,2]
[344537724,1733537491691,-151.0,0.00012598,2]
[344537725,1733537491702,-500.0,0.00012598,2]
[344537726,1733537491711,-500.0,0.00012598,2]
[344537727,1733537491721,-921.57,0.00012598,2]
[344537728,1733537491731,-151.0,0.00012598,2]
[344537729,1733537491740,-1281.93,0.00012598,2]
[344537730,1733537491750,-195.884515,0.00012598,2]
[344537731,1733537491760,-736.24,0.00012598,2]
[344537732,1733537491770,-500.0,0.00012598,2]
[344537733,1733537491780,-500.0,0.00012598,2]
[344537734,1733537491789,-529.97,0.00012598,2]
[344537735,1733537491799,-500.0,0.00012598,2]
[344537736,1733537491809,-780.19,0.00012598,2]
[344537737,1733537491819,-655.95,0.00012598,2]
[344537738,1733537491830,-911.08,0.00012598,2]
[344537739,1733537491840,-530.43,0.00012598,2]
[344537740,1733537491851,-873.22,0.00012598,2]
[344537741,1733537491862,-1140.22,0.00012598,2]
[344537742,1733537491871,-627.08,0.00012598,2]
[344537743,1733537491881,-643.92,0.00012598,2]
[344537744,1733537491891,-2433.75,0.00012598,2]
[344537745,1733537491902,-1430.18,0.00012598,2]
[344537746,1733537491912,-500.0,0.00012598,2]
[344537747,1733537491921,-782.99,0.00012598,2]
[344537748,1733537491931,-2284.01,0.00012598,2]
[344537749,1733537491940,-780.92,0.00012598,2]
[344537750,1733537491951,-500.0,0.00012598,2]
[344537751,1733537491961,-509.76,0.00012598,2]
[344537752,1733537491970,-693.87,0.00012598,2]
[344537753,1733537491981,-831.52,0.00012598,2]
[344537754,1733537491991,-500.0,0.00012598,2]
[344537755,1733537492000,-714.59,0.00012598,2]
[344537756,1733537492010,-1380.02,0.00012598,2]
[344537757,1733537492020,-823.48,0.00012598,2]
[344537758,1733537492029,-893.2,0.00012598,2]
[344537759,1733537492039,-814.35,0.00012598,2]
[344537760,1733537492048,-1734.35,0.00012598,2]
[344537761,1733537492058,-500.0,0.00012598,2]
[344537762,1733537492068,-3768.03,0.00012598,2]
[344537763,1733537492077,-582.08,0.00012598,2]
[344537764,1733537492087,-830.35,0.00012598,2]
[344537765,1733537492097,-975.77,0.00012598,2]
[344537766,1733537492107,-500.0,0.00012598,2]
[344537767,1733537492117,-2327.353226,0.00012598,2]
[344537768,1733537492126,-7359.0,0.00012598,2]
[344537769,1733537492136,-3459.63,0.00012598,2]
[344537770,1733537492145,-500.0,0.00012598,2]
[344537771,1733537492160,-2327.353226,0.00012598,2]
[344537772,1733537492171,-769.9,0.00012598,2]
[344537773,1733537492181,-500.0,0.00012598,2]
[344537774,1733537492191,-500.0,0.00012598,2]
[344537775,1733537492201,-1346.14,0.00012598,2]
[344537776,1733537492211,-964.1,0.00012598,2]
[344537777,1733537492221,-1060.98,0.00012598,2]
[344537778,1733537492232,-2194.59,0.00012598,2]
[344537779,1733537492242,-1828.43,0.00012598,2]
[344537780,1733537492252,-1200.0,0.00012598,2]
[344537781,1733537492262,-500.0,0.00012598,2]
[344537782,1733537492272,-500.0,0.00012598,2]
[344537783,1733537492282,-500.0,0.00012598,2]
[344537784,1733537492293,-535.97,0.00012598,2]
[344537785,1733537492303,-500.0,0.00012598,2]
[344537786,1733537492313,-564.88,0.00012598,2]
[344537787,1733537492323,-10224.43,0.00012598,2]
[344537788,1733537492333,-848.28,0.00012598,2]
[344537789,1733537492342,-2147.92,0.00012598,2]
[344537790,1733537492357,-2112.65,0.00012598,2]
[344537791,1733537492367,-967.65,0.00012598,2]
[344537792,1733537492376,-500.0,0.00012598,2]
[344537793,1733537492386,-2046.48,0.00012598,2]
[344537794,1733537492396,-674.48,0.00012598,2]
[344537795,1733537492407,-1371.16,0.00012598,2]
[344537796,1733537492417,-1082.33,0.00012598,2]
[344537797,1733537492427,-837.66,0.00012598,2]
[344537798,1733537492437,-9124.76,0.00012598,2]
[344537799,1733537492447,-157.59680453,0.00012598,2]
[344537800,1733537492457,-567.79,0.00012598,2]
[344537801,1733537492467,-679.51,0.00012598,2]
[344537802,1733537492476,-500.0,0.00012598,2]
[344537803,1733537492486,-1047.21,0.00012598,2]
[344537804,1733537492496,-500.0,0.00012598,2]
[344537805,1733537492506,-621.96,0.00012598,2]
[344537806,1733537492730,-500.0,0.00012598,2]
[344537807,1733537492739,-500.0,0.00012598,2]
[344537808,1733537492748,-1080.14,0.00012598,2]
[344537809,1733537492758,-500.0,0.00012598,2]
[344537810,1733537492769,-628.02,0.00012598,2]
[344537811,1733537492779,-500.0,0.00012598,2]
[344537812,1733537492788,-1351.25,0.00012598,2]
[344537813,1733537492797,-1754.98,0.00012598,2]
[344537814,1733537492807,-5506.2,0.00012598,2]
[344537815,1733537492816,-3200.75,0.00012598,2]
[344537816,1733537492825,-536.93,0.00012598,2]
[344537817,1733537492835,-500.0,0.00012598,2]
[344537818,1733537492845,-1297.69,0.00012598,2]
[344537819,1733537492854,-500.0,0.00012598,2]
[344537820,1733537492864,-1217.46,0.00012598,2]
[344537821,1733537492873,-500.0,0.00012598,2]
[344537822,1733537492883,-1520.75,0.00012598,2]
[344537823,1733537492892,-500.0,0.00012598,2]
[344537824,1733537492904,-5161.49,0.00012598,2]
[344537825,1733537492913,-7014.762614,0.00012598,2]
[344537826,1733537492923,-525.72,0.00012598,2]
[344537827,1733537492932,-7014.762614,0.00012598,2]
[344537828,1733537492942,-500.0,0.00012598,2]
[344537829,1733537492951,-4752.83,0.00012598,2]
[344537830,1733537492962,-500.0,0.00012598,2]
[344537831,1733537492972,-579.7,0.00012598,2]
[344537832,1733537492981,-1013.93,0.00012598,2]
[344537833,1733537492991,-500.0,0.00012598,2]
[344537834,1733537493001,-500.0,0.00012598,2]
[344537835,1733537493011,-500.0,0.00012598,2]
[344537836,1733537493021,-980.16,0.00012598,2]
[344537837,1733537493031,-1478.17,0.00012598,2]
[344537838,1733537493041,-2253.52,0.00012598,2]
[344537839,1733537493050,-529.93,0.00012598,2]
[344537840,1733537493060,-589.51,0.00012598,2]
[344537841,1733537493070,-846.32,0.00012598,2]
[344537842,1733537493080,-634.76,0.00012598,2]
[344537843,1733537493090,-1592.53,0.00012598,2]
[344537844,1733537493100,-500.0,0.00012598,2]
[344537845,1733537493111,-500.0,0.00012598,2]
[344537846,1733537493121,-806.38,0.00012598,2]
[344537847,1733537493131,-2226.238167,0.00012598,2]
[344537848,1733537493141,-2190.571716,0.00012598,2]
[344537849,1733537493154,-320.11409038,0.00012598,2]
[344537850,1733537493164,-987.46,0.00012598,2]
[344537851,1733537493175,-500.0,0.00012598,2]
[344537852,1733537493185,-2190.571716,0.00012598,2]
[344537853,1733537493196,-678.97,0.00012598,2]
[344537854,1733537493205,-527.38,0.00012598,2]
[344537855,1733537493215,-500.0,0.00012598,2]
[344537856,1733537493227,-2226.238167,0.00012598,2]
[344537857,1733537493237,-845.26,0.00012598,2]
[344537858,1733537493248,-618.23,0.00012598,2]
[344537859,1733537493258,-718.78,0.00012598,2]
[344537860,1733537493268,-500.0,0.00012598,2]
[344537861,1733537493279,-500.0,0.00012598,2]
[344537862,1733537493289,-500.0,0.00012598,2]
[344537863,1733537493300,-500.0,0.00012598,2]
[344537864,1733537493310,-700.38,0.00012598,2]
[344537865,1733537493321,-2142.56,0.00012598,2]
[344537866,1733537493331,-500.0,0.00012598,2]
[344537867,1733537493341,-1006.68,0.00012598,2]
[344537868,1733537493354,-500.0,0.00012598,2]
[344537869,1733537493365,-500.0,0.00012598,2]
[344537870,1733537493375,-601.72,0.00012598,2]
[344537871,1733537493385,-810.93,0.00012598,2]
[344537872,1733537493396,-500.0,0.00012598,2]
[344537873,1733537493408,-525.97611784,0.00012598,2]
[344537874,1733537493417,-500.0,0.00012598,2]
[344537875,1733537493428,-2711.3,0.00012598,2]
[344537876,1733537493438,-1456.41,0.00012598,2]
[344537877,1733537493449,-552.66,0.00012598,2]
[344537878,1733537493459,-1264.39,0.00012598,2]
[344537879,1733537493470,-742.7,0.00012598,2]
[344537880,1733537493480,-500.0,0.00012598,2]
[344537881,1733537493491,-500.0,0.00012598,2]
[344537882,1733537493501,-500.0,0.00012598,2]
[344537883,1733537493511,-302.35862313,0.00012598,2]
[344537884,1733537493521,-500.0,0.00012598,2]
[344537885,1733537493531,-1614.85,0.00012598,2]
[344537886,1733537493541,-500.0,0.00012599,2]
[344537887,1733537493550,-500.0,0.00012599,2]
[344537888,1733537493560,-935.29,0.00012599,2]
[344537889,1733537493569,-507.32,0.00012599,2]
[344537890,1733537493580,-537.37,0.00012599,2]
[344537891,1733537493589,-500.0,0.00012599,2]
[344537892,1733537493599,-500.0,0.00012599,2]
[344537893,1733537493609,-500.0,0.00012599,2]
[344537894,1733537493619,-500.0,0.00012599,2]
[344537895,1733537493629,-1039.25,0.00012599,2]
[344537896,1733537493639,-934.3,0.00012599,2]
[344537897,1733537493650,-706.31,0.00012599,2]
[344537898,1733537493660,-500.0,0.00012599,2]
[344537899,1733537493669,-1575.02,0.00012599,2]
[344537900,1733537493679,-974.48,0.00012599,2]
[344537901,1733537493690,-500.0,0.00012599,2]
[344537902,1733537493699,-594.53,0.00012599,2]
[344537903,1733537493709,-500.0,0.00012599,2]
[344537904,1733537493719,-500.0,0.00012599,2]
[344537905,1733537493729,-500.0,0.00012599,2]
[344537906,1733537493739,-151.0,0.00012599,2]
[344537907,1733537493749,-151.0,0.00012599,2]
[344537908,1733537493759,-500.0,0.00012599,2]
[344537909,1733537493768,-500.0,0.00012599,2]
[344537910,1733537493777,-500.0,0.00012599,2]
[344537911,1733537493787,-500.0,0.00012599,2]
[344537912,1733537493797,-500.0,0.00012599,2]
[344537913,1733537493807,-500.0,0.00012599,2]
[344537914,1733537493817,-500.0,0.00012599,2]
[344537915,1733537493826,-221.807666,0.00012599,2]
[344537916,1733537493835,-221.807666,0.00012599,2]
[344537917,1733537493845,-500.0,0.00012599,2]
[344537918,1733537493854,-648.49,0.00012599,2]
[344537919,1733537493864,-500.0,0.00012599,2]
[344537920,1733537493874,-500.0,0.00012599,2]
[344537921,1733537493884,-500.0,0.00012599,2]
[344537922,1733537493894,-500.0,0.00012599,2]
[344537923,1733537493908,-672.69,0.00012599,2]
[344537924,1733537493917,-500.0,0.00012599,2]
[344537925,1733537493931,-523.55,0.00012599,2]
[344537926,1733537493941,-500.0,0.00012599,2]
[344537927,1733537493951,-734.69,0.00012599,2]
[344537928,1733537493961,-500.0,0.00012599,2]
[344537929,1733537493970,-500.0,0.00012599,2]
[344537930,1733537493981,-574.62,0.00012599,2]
[344537931,1733537493991,-507.11,0.00012599,2]
[344537932,1733537494001,-561.87,0.00012599,2]